bitfinex/quotes_BTCUSD_20220111
["timestamp","ask_amount","ask_price","bid_price","bid_amount"]
[1641888070128,0.00027172,42231.0,42228.0,1.10347946]
[1641888070327,0.0009553,42231.0,42230.0,0.371351]
[1641888070526,0.0009553,42231.0,42230.0,0.89283345]
[1641888070728,0.0009553,42231.0,42230.0,0.96398345]
[1641888071130,0.0009553,42231.0,42230.0,1.38765814]
[1641888071332,0.00027172,42231.0,42230.0,0.96398345]
[1641888072432,0.00027172,42231.0,42230.0,1.43684099]
[1641888072632,0.00027172,42231.0,42230.0,0.96398345]
[1641888072831,0.00027172,42231.0,42230.0,0.97698345]
[1641888073032,0.00027172,42231.0,42230.0,0.605501]
[1641888073432,0.0015553,42238.0,42230.0,0.605501]
[1641888073660,0.0015553,42238.0,42235.0,0.41925106]
[1641888073858,0.0015553,42238.0,42235.0,0.46925106]
[1641888074062,0.0015553,42238.0,42235.0,0.56925106]
[1641888074460,0.0015553,42238.0,42236.0,0.2863009]
[1641888075060,0.0015553,42238.0,42236.0,0.59483437]
[1641888075259,0.0015553,42238.0,42237.0,0.371351]
[1641888075462,0.0015553,42238.0,42235.0,0.158]
[1641888075664,0.0015553,42238.0,42235.0,0.058]
[1641888075862,0.0015553,42238.0,42235.0,0.008]
[1641888076061,0.0015553,42238.0,42230.0,0.07193771]
[1641888076262,0.0015553,42238.0,42234.0,0.77739514]
[1641888076463,0.0015553,42238.0,42237.0,0.371351]
[1641888076664,0.0015553,42238.0,42237.0,0.1]
[1641888076863,0.0015553,42238.0,42237.0,0.15]
[1641888077514,0.0015553,42238.0,42237.0,0.521351]
[1641888077713,0.0015553,42238.0,42237.0,0.421351]
[1641888077915,0.0015553,42238.0,42237.0,0.521351]
[1641888078516,0.0015553,42238.0,42237.0,0.592501]
[1641888078715,0.0015553,42238.0,42237.0,0.601501]
[1641888078917,0.0015553,42238.0,42237.0,0.60228074]
[1641888079519,0.0015553,42238.0,42237.0,0.38113074]
[1641888079719,0.0015553,42238.0,42224.0,0.20076]
[1641888079720,0.25,42237.0,42224.0,0.20076]
[1641888079918,0.25,42237.0,42225.0,0.371351]
[1641888079919,0.10120822,42233.0,42225.0,0.371351]
[1641888080118,0.10120822,42233.0,42224.0,0.20076]
[1641888080119,0.2471533,42226.0,42224.0,0.20076]
[1641888080318,0.05,42226.0,42224.0,0.20076]
[1641888080719,0.1,42229.0,42224.0,0.22076]
[1641888080920,0.15,42229.0,42224.0,0.46076]
[1641888081155,0.05,42229.0,42224.0,0.46076]
[1641888081359,0.31091339,42228.0,42224.0,0.46076]
[1641888081559,0.00120822,42233.0,42224.0,0.46076]
[1641888081761,0.0600486,42235.0,42224.0,0.319186]
[1641888081762,0.0008536,42235.0,42224.0,0.319186]
[1641888081964,0.31197833,42236.0,42224.0,0.299186]
[1641888082159,0.31197833,42236.0,42224.0,0.29]
[1641888082461,0.00085365,42235.0,42224.0,0.29]
[1641888082661,0.25251064,42234.0,42227.0,0.118353]
[1641888082958,0.25251064,42234.0,42228.0,0.12115]
[1641888083160,0.021,42236.0,42228.0,0.180331]
[1641888083363,0.00085366,42235.0,42228.0,0.180331]
[1641888083561,0.00085366,42235.0,42228.0,0.12115]
[1641888083761,0.00085366,42235.0,42229.0,0.371351]
[1641888083965,0.00085366,42235.0,42233.0,0.66329381]
[1641888084163,0.00085366,42235.0,42234.0,0.371351]
[1641888084366,0.0015553,42238.0,42234.0,0.421351]
[1641888084567,0.0015553,42238.0,42234.0,0.15]
[1641888084764,0.00085367,42237.0,42234.0,0.16]
[1641888085007,0.00085367,42237.0,42236.0,0.421351]
[1641888085410,0.00085367,42237.0,42236.0,0.559168]
[1641888085608,0.0015553,42238.0,42236.0,0.930519]
[1641888085908,0.0015553,42238.0,42236.0,0.92995327]
[1641888086108,0.0015553,42238.0,42237.0,0.371351]
[1641888086309,0.0015553,42238.0,42237.0,0.442501]
[1641888086511,0.0015553,42238.0,42237.0,0.542501]
[1641888086910,0.0015553,42238.0,42237.0,0.554501]
[1641888087311,0.0015553,42238.0,42237.0,0.61366011]
[1641888087715,0.25749647,42246.0,42237.0,0.61366011]
[1641888087716,0.003,42248.0,42241.0,0.371351]
[1641888088017,0.003,42248.0,42246.0,0.00120957]
[1641888088212,0.073,42248.0,42247.0,0.371351]
[1641888088412,0.073,42248.0,42246.0,0.00120957]
[1641888088659,0.35886462,42248.0,42246.0,0.00120957]
[1641888088858,0.35886462,42248.0,42247.0,0.380351]
[1641888089057,0.35886462,42248.0,42247.0,0.009]
[1641888089260,0.073,42248.0,42247.0,0.009]
[1641888089459,0.003,42248.0,42247.0,0.380351]
[1641888089662,0.004,42249.0,42248.0,0.46691456]
[1641888089858,0.004,42249.0,42248.0,0.421351]
[1641888090058,0.004,42249.0,42248.0,0.521351]
[1641888090258,0.004,42249.0,42248.0,1.00925801]
[1641888090458,0.004,42249.0,42248.0,1.52110989]
[1641888090660,0.004,42249.0,42248.0,1.62421726]
[1641888090859,0.004,42249.0,42248.0,1.63721726]
[1641888091459,0.004,42249.0,42248.0,1.77410989]
[1641888092059,0.004,42249.0,42248.0,1.37040801]
[1641888092420,0.004,42249.0,42248.0,1.801697]
[1641888092605,0.004,42249.0,42248.0,1.42955601]
[1641888092805,0.002,42250.0,42248.0,1.44355601]
[1641888093006,0.002,42250.0,42249.0,0.371351]
[1641888093206,0.002,42250.0,42249.0,0.74611176]
[1641888093406,0.002,42250.0,42249.0,0.84611176]
[1641888093607,0.002,42250.0,42249.0,0.91726176]
[1641888094508,0.002,42250.0,42249.0,2.17326176]
[1641888094707,0.002,42250.0,42249.0,0.91726176]
[1641888094910,0.003,42251.0,42250.0,0.95]
[1641888095107,0.003,42251.0,42250.0,1.421351]
[1641888095309,0.003,42251.0,42250.0,0.471351]
[1641888095708,0.003,42251.0,42250.0,0.91807709]
[1641888095909,0.003,42251.0,42250.0,0.542501]
[1641888096557,0.002,42252.0,42250.0,0.542501]
[1641888096759,0.002,42252.0,42251.0,0.81547662]
[1641888097157,0.003,42254.0,42252.0,0.430488]
[1641888097464,0.003,42254.0,42253.0,0.371351]
[1641888097658,0.25249417,42254.0,42253.0,0.471351]
[1641888097859,0.60977858,42254.0,42253.0,0.371351]
[1641888098058,0.36028441,42254.0,42250.0,0.014]
[1641888098260,0.003,42254.0,42250.0,0.014]
[1641888098458,0.003,42254.0,42248.0,0.24057229]
[1641888098659,0.003,42254.0,42248.0,0.24045344]
[1641888098958,0.009,42254.0,42253.0,0.00060966]
[1641888099157,0.31510091,42254.0,42253.0,0.00060966]
[1641888099360,0.69550152,42254.0,42253.0,0.00060966]
[1641888100014,0.68950152,42254.0,42253.0,0.00060966]
[1641888100312,0.38340061,42254.0,42253.0,0.00060966]
[1641888100711,0.75475161,42254.0,42253.0,0.00060966]
[1641888100910,0.75575161,42254.0,42253.0,0.00060966]
[1641888101511,1.06497872,42254.0,42253.0,0.00060966]
[1641888102113,1.06397872,42254.0,42253.0,0.00060966]
[1641888102911,1.06697872,42254.0,42253.0,0.00060966]
[1641888104055,1.06397872,42254.0,42253.0,0.00060966]
[1641888104857,1.06897872,42254.0,42253.0,0.00060966]
[1641888105057,1.16897872,42254.0,42253.0,0.00060966]
[1641888105457,0.85,42253.0,42247.0,0.00085364]
[1641888105657,0.00712911,42252.0,42247.0,0.00085364]
[1641888105857,0.00120466,42248.0,42247.0,0.00085364]
[1641888106058,0.00120466,42248.0,42228.0,0.07115]
[1641888106059,0.47255566,42248.0,42228.0,0.07115]
[1641888106358,0.7054104,42237.0,42233.0,0.25821078]
[1641888106556,0.35120224,42236.0,42230.0,0.45415922]
[1641888106757,0.35120224,42236.0,42231.0,0.371351]
[1641888106957,0.35120224,42236.0,42228.0,0.130331]
[1641888107413,0.35120224,42236.0,42230.0,0.00085378]
[1641888107608,0.35120224,42236.0,42230.0,0.27342756]
[1641888108408,0.00120207,42238.0,42232.0,0.059178]
[1641888108809,0.003,42236.0,42232.0,0.059178]
[1641888109010,0.003,42236.0,42232.0,0.05977209]
[1641888109311,0.36297064,42236.0,42232.0,0.05977209]
[1641888109913,0.36297064,42236.0,42232.0,0.06062585]
[1641888110115,0.35997064,42236.0,42232.0,0.06062585]
[1641888110617,0.00124189,42233.0,42232.0,0.00144785]
[1641888110815,0.00124189,42233.0,42218.0,0.0473]
[1641888110816,0.03449611,42232.0,42218.0,0.0473]
[1641888111019,0.03449611,42232.0,42220.0,0.003416]
[1641888111020,0.39995143,42232.0,42220.0,0.003416]
[1641888111260,0.00124189,42233.0,42221.0,0.07115]
[1641888111459,0.287,42236.0,42232.0,0.24]
[1641888111662,1.50588438,42244.0,42235.0,1.25]
[1641888111860,1.50588438,42244.0,42234.0,0.059173]
[1641888111861,0.60298438,42244.0,42240.0,0.24765342]
[1641888112062,0.60298438,42244.0,42240.0,0.31880342]
[1641888112260,0.60298438,42244.0,42240.0,0.37795642]
[1641888112461,0.00042849,42245.0,42242.0,0.00128224]
[1641888112660,0.00042849,42245.0,42244.0,1.021351]
[1641888112861,0.00171384,42248.0,42245.0,1.2]
[1641888113065,0.00171384,42248.0,42247.0,0.371351]
[1641888113261,0.9032,42255.0,42247.0,0.371351]
[1641888113464,0.9032,42255.0,42247.0,0.1]
[1641888114263,0.9032,42255.0,42250.0,0.059147]
[1641888114462,0.9032,42255.0,42253.0,0.2887764]
[1641888114661,0.002,42255.0,42252.0,0.05]
[1641888115907,0.002,42255.0,42253.0,0.34270209]
[1641888115908,0.00285348,42255.0,42253.0,0.34270209]
[1641888116106,0.00285348,42255.0,42250.0,0.059147]
[1641888116307,0.00285348,42255.0,42251.0,0.371351]
[1641888116506,0.00285348,42255.0,42251.0,0.421351]
[1641888116708,0.00285348,42255.0,42251.0,0.521351]
[1641888116908,0.00465627,42261.0,42251.0,0.382351]
[1641888116909,0.04559831,42259.0,42251.0,0.382351]
[1641888117108,2.44836875,42255.0,42251.0,0.011]
[1641888117308,2.44959017,42255.0,42251.0,0.011]
[1641888117510,0.00207491,42255.0,42251.0,0.011]
[1641888117907,0.00207491,42255.0,42251.0,0.27829825]
[1641888118114,0.26237804,42257.0,42245.0,0.21829]
[1641888118408,0.00085348,42255.0,42245.0,0.11829]
[1641888118865,0.00085348,42255.0,42245.0,0.12329]
[1641888119065,0.00085348,42255.0,42251.0,0.25367524]
[1641888119266,0.00124473,42258.0,42251.0,0.25367524]
[1641888119566,0.00124473,42258.0,42251.0,0.30367524]
[1641888119567,0.00085351,42252.0,42251.0,0.30367524]
[1641888119966,0.00085351,42252.0,42251.0,0.77502624]
[1641888120569,0.32292403,42258.0,42251.0,0.371351]
[1641888120771,0.0008535,42254.0,42251.0,0.15]
[1641888120968,0.0008535,42254.0,42251.0,0.012]
[1641888121169,0.0008535,42254.0,42253.0,0.24593888]
[1641888121567,0.0008535,42254.0,42251.0,0.162]
[1641888121767,0.37158286,42263.0,42251.0,0.162]
[1641888121966,0.00085348,42256.0,42251.0,0.162]
[1641888122167,0.00085348,42256.0,42252.0,0.24436265]
[1641888122412,0.00085348,42256.0,42253.0,0.059145]
[1641888123007,0.32890126,42262.0,42253.0,0.059145]
[1641888123209,0.00085347,42257.0,42253.0,0.059145]
[1641888123621,0.00085347,42257.0,42252.0,0.009]
[1641888124010,0.04850014,42257.0,42252.0,0.009]
[1641888124210,0.04850014,42257.0,42251.0,0.24]
[1641888124211,0.39150238,42256.0,42251.0,0.24]
[1641888124410,0.2739473,42253.0,42251.0,0.24]
[1641888124611,0.32204392,42252.0,42251.0,0.24]
[1641888124910,0.32204392,42252.0,42251.0,0.241]
[1641888126159,0.32204392,42252.0,42251.0,0.24]
[1641888126959,0.32204392,42252.0,42251.0,0.253]
[1641888127362,0.32204392,42252.0,42251.0,0.303]
[1641888127561,0.0008535,42254.0,42251.0,0.403]
[1641888127862,0.0008535,42254.0,42251.0,0.303]
[1641888128260,0.0008535,42254.0,42251.0,0.29]
[1641888128860,0.0008535,42254.0,42251.0,0.298]
[1641888128861,0.27206011,42254.0,42251.0,0.298]
[1641888129062,0.27206011,42254.0,42253.0,0.00065106]
[1641888129461,0.6032451,42254.0,42253.0,0.00065106]
[1641888129662,0.00085349,42255.0,42253.0,0.00065106]
[1641888130115,0.36978409,42257.0,42253.0,0.00065106]
[1641888130316,0.00085347,42256.0,42253.0,0.00065106]
[1641888130715,0.2656581,42255.0,42253.0,0.00065106]
[1641888130916,0.82794373,42254.0,42253.0,0.00565106]
[1641888131122,0.92250705,42254.0,42253.0,0.00565106]
[1641888131317,1.29385805,42254.0,42253.0,0.00565106]
[1641888131517,1.29385805,42254.0,42253.0,0.00065106]
[1641888131915,1.24385805,42254.0,42253.0,0.00065106]
[1641888132115,0.69929473,42254.0,42253.0,0.00065106]
[1641888132716,1.29929473,42254.0,42253.0,0.00065106]
[1641888133115,1.34929473,42254.0,42253.0,0.00065106]
[1641888133519,0.74929473,42254.0,42253.0,0.00065106]
[1641888133960,0.69929473,42254.0,42253.0,0.00065106]
[1641888134960,0.71429473,42254.0,42253.0,0.00065106]
[1641888135565,0.015,42254.0,42253.0,0.00065106]
[1641888136267,0.00085348,42256.0,42253.0,0.00065106]
[1641888136462,0.00085348,42256.0,42251.0,0.23565106]
[1641888136663,0.00085348,42256.0,42251.0,0.28565106]
[1641888136862,0.02185348,42256.0,42253.0,0.004]
[1641888137264,0.021,42256.0,42253.0,0.004]
[1641888138119,0.021,42256.0,42251.0,0.28565106]
[1641888138320,0.00085347,42257.0,42251.0,0.28565106]
[1641888138521,0.28229544,42258.0,42251.0,0.28565106]
[1641888138720,0.00085348,42256.0,42251.0,0.23565106]
[1641888138927,0.00085348,42256.0,42251.0,0.29065106]
[1641888139323,0.00085348,42256.0,42252.0,0.3795051]
[1641888139527,0.00085348,42256.0,42253.0,0.371351]
[1641888139725,0.04,42257.0,42253.0,0.371351]
[1641888139924,0.00085347,42256.0,42253.0,0.471351]
[1641888140327,0.00085347,42256.0,42253.0,0.530499]
[1641888140824,0.3280176,42261.0,42253.0,0.530499]
[1641888141025,0.025,42256.0,42253.0,0.169148]
[1641888141263,0.025,42256.0,42254.0,0.371351]
[1641888141464,0.025,42256.0,42255.0,0.921351]
[1641888141667,0.025,42256.0,42255.0,1.021351]
[1641888141862,0.025,42256.0,42255.0,1.071351]
[1641888142063,0.42,42264.0,42255.0,1.071351]
[1641888142263,0.42,42264.0,42259.0,0.38153043]
[1641888142264,0.42341332,42264.0,42259.0,0.38153043]
[1641888142462,0.42341332,42264.0,42259.0,0.67812635]
[1641888142662,0.42341332,42264.0,42259.0,0.77812635]
[1641888142863,0.42341332,42264.0,42259.0,0.78712635]
[1641888143063,0.00341332,42264.0,42259.0,0.78712635]
[1641888143266,1.3692,42267.0,42261.0,0.45297509]
[1641888143267,0.42,42267.0,42261.0,0.45297509]
[1641888143467,0.0008534,42264.0,42263.0,0.059132]
[1641888143665,0.0008534,42264.0,42263.0,0.49959711]
[1641888143865,0.0008534,42264.0,42263.0,0.52431711]
[1641888144069,0.0008534,42264.0,42263.0,0.62431711]
[1641888144465,0.42,42267.0,42263.0,1.12431711]
[1641888144665,0.42,42267.0,42266.0,0.67976612]
[1641888145122,0.42,42267.0,42266.0,0.77976612]
[1641888145322,0.004,42269.0,42266.0,0.77976612]
[1641888145523,0.004,42269.0,42267.0,0.059119]
[1641888145725,0.004,42269.0,42268.0,0.371351]
[1641888146027,0.004,42269.0,42268.0,0.471351]
[1641888147123,0.004,42269.0,42268.0,0.487351]
[1641888148023,0.004,42269.0,42268.0,0.537351]
[1641888148223,0.004,42269.0,42268.0,0.521351]
[1641888149058,0.004,42269.0,42268.0,0.533351]
[1641888149461,0.00082264,42271.0,42269.0,0.65]
[1641888149660,0.00082264,42271.0,42270.0,0.559124]
[1641888149862,0.00082264,42271.0,42270.0,1.045835]
[1641888150059,0.001,42272.0,42270.0,1.195835]
[1641888150260,0.001,42272.0,42271.0,0.371351]
[1641888150460,0.001,42272.0,42271.0,0.421351]
[1641888150661,0.001,42272.0,42271.0,0.592501]
[1641888150861,0.001,42272.0,42271.0,1.092501]
[1641888151161,0.001,42272.0,42271.0,1.107501]
[1641888151962,0.001,42272.0,42271.0,0.886351]
[1641888152162,0.001,42272.0,42271.0,0.871351]
[1641888152419,0.001,42272.0,42271.0,0.371351]
[1641888152614,0.001,42272.0,42266.0,0.118237]
[1641888152615,1.151,42272.0,42265.0,0.00043651]
[1641888152912,0.37158286,42271.0,42259.0,0.418866]
[1641888153212,0.24321181,42268.0,42265.0,0.00043651]
[1641888153512,0.25480597,42267.0,42265.0,0.00043651]
[1641888154011,0.25480597,42267.0,42261.0,0.37743266]
[1641888154210,0.25480597,42267.0,42264.0,0.00085344]
[1641888154611,0.25542381,42270.0,42264.0,0.00085344]
[1641888154812,0.37158286,42269.0,42264.0,0.00085344]
[1641888155114,0.00220911,42272.0,42264.0,0.02185344]
[1641888155311,0.00220911,42272.0,42264.0,0.021]
[1641888155513,0.001,42272.0,42269.0,0.38962185]
[1641888155713,0.001,42272.0,42271.0,0.32727015]
[1641888156164,0.001,42272.0,42271.0,0.79862115]
[1641888156366,0.001,42272.0,42271.0,0.521351]
[1641888156766,0.001,42272.0,42271.0,0.05]
[1641888156970,0.001,42272.0,42271.0,0.012]
[1641888157368,0.6327917,42272.0,42271.0,0.012]
[1641888157567,0.98931117,42272.0,42271.0,0.012]
[1641888157767,0.30659343,42272.0,42271.0,0.012]
[1641888158368,0.30659343,42272.0,42268.0,0.059126]
[1641888158869,0.001,42272.0,42268.0,0.059126]
[1641888159068,0.001,42272.0,42268.0,0.073126]
[1641888159469,0.001,42272.0,42268.0,0.123126]
[1641888159668,0.001,42272.0,42269.0,0.371351]
[1641888160117,0.001,42272.0,42269.0,0.471351]
[1641888160914,0.001,42272.0,42269.0,0.483351]
[1641888161315,0.001,42272.0,42269.0,0.54247009]
[1641888161515,0.001,42272.0,42271.0,0.43746936]
[1641888161716,0.001,42272.0,42271.0,0.371351]
[1641888161915,0.001,42272.0,42271.0,0.571351]
[1641888162119,0.001,42272.0,42271.0,0.521351]
[1641888162716,0.27303386,42272.0,42271.0,0.521351]
[1641888162917,0.27303386,42272.0,42271.0,0.15]
[1641888163117,0.27303386,42272.0,42271.0,0.012]
[1641888163320,0.84323232,42272.0,42271.0,0.012]
[1641888163666,0.47188132,42272.0,42271.0,0.012]
[1641888164065,1.27635752,42272.0,42271.0,0.252]
[1641888164469,1.27635752,42272.0,42271.0,0.24]
[1641888164966,1.27635752,42272.0,42271.0,0.273]
[1641888166167,1.27635752,42272.0,42271.0,0.24]
[1641888167070,1.15,42271.0,42265.0,0.00085346]
[1641888167273,0.050596,42270.0,42257.0,0.1]
[1641888167522,0.00122875,42267.0,42265.0,0.00085346]
[1641888167721,0.64094248,42266.0,42265.0,0.00085346]
[1641888167924,0.85581998,42266.0,42265.0,0.00085346]
[1641888168121,1.3080454,42266.0,42265.0,0.00085346]
[1641888168520,1.3080454,42266.0,42249.0,0.07100659]
[1641888168521,0.34262228,42254.0,42249.0,0.07100659]
[1641888168721,0.34262228,42254.0,42250.0,0.371351]
[1641888168920,0.34262228,42254.0,42249.0,0.07100659]
[1641888169123,0.34262228,42254.0,42249.0,0.13100659]
[1641888169420,0.34262228,42254.0,42249.0,0.06]
[1641888169623,0.33020049,42253.0,42249.0,0.06]
[1641888169824,0.33020049,42253.0,42249.0,0.06085358]
[1641888170324,0.33020049,42253.0,42249.0,0.00085358]
[1641888170825,0.33020049,42253.0,42246.0,0.41956334]
[1641888171025,0.51672577,42253.0,42249.0,0.01485359]
[1641888171264,0.33020049,42253.0,42249.0,0.01485359]
[1641888171866,0.059161,42258.0,42249.0,0.01485359]
[1641888172067,0.70348178,42270.0,42249.0,0.01485359]
[1641888172068,0.059157,42261.0,42252.0,0.38070284]
[1641888172267,0.5,42264.0,42252.0,0.38070284]
[1641888172866,0.5,42264.0,42259.0,0.27635344]
[1641888173070,0.5,42264.0,42255.0,0.26321373]
[1641888173071,0.5,42264.0,42261.0,0.059137]
[1641888173567,0.5,42264.0,42259.0,0.16911848]
[1641888173769,1.1327161,42268.0,42259.0,0.21911848]
[1641888174166,1.1327161,42268.0,42262.0,0.059134]
[1641888174370,0.5,42268.0,42262.0,0.059134]
[1641888174769,0.32876445,42271.0,42266.0,0.34383678]
[1641888175018,0.001,42272.0,42266.0,0.39383678]
[1641888175219,0.001,42272.0,42266.0,0.15]
[1641888175617,0.001,42272.0,42266.0,0.2]
[1641888175818,0.001,42272.0,42267.0,0.07115]
[1641888176219,0.3374144,42272.0,42267.0,0.37862877]
[1641888176519,0.001,42272.0,42267.0,0.07115]
[1641888176717,0.001,42272.0,42267.0,0.17115]
[1641888177121,0.001,42272.0,42268.0,0.059127]
[1641888177520,0.32321557,42271.0,42268.0,0.059127]
[1641888177717,0.32321557,42271.0,42267.0,0.36]
[1641888177916,0.32321557,42271.0,42267.0,0.26]
[1641888178319,0.32321557,42271.0,42267.0,0.24]
[1641888178517,0.2934155,42270.0,42267.0,0.24]
[1641888178966,0.371351,42269.0,42267.0,0.267]
[1641888179168,0.9763157,42268.0,42267.0,0.267]
[1641888179463,0.2934155,42270.0,42267.0,0.267]
[1641888179663,0.33811344,42269.0,42267.0,0.267]
[1641888180265,0.64568564,42268.0,42267.0,0.267]
[1641888180466,0.60914188,42268.0,42267.0,0.267]
[1641888180672,0.69286258,42267.0,42265.0,0.00085343]
[1641888180869,0.40884995,42266.0,42265.0,0.00085343]
[1641888181267,1.46006296,42266.0,42265.0,0.00085343]
[1641888181469,1.36006296,42266.0,42265.0,0.00085343]
[1641888181668,1.36006296,42266.0,42248.0,0.07100914]
[1641888181669,0.45550124,42252.0,42251.0,0.25653724]
[1641888181968,0.45550124,42252.0,42248.0,0.07100914]
[1641888181969,0.69513063,42252.0,42248.0,0.07100914]
[1641888182618,0.69513063,42252.0,42247.0,0.42692303]
[1641888182815,0.33618005,42249.0,42247.0,0.42692303]
[1641888183015,0.33618005,42249.0,42248.0,0.058]
[1641888183215,0.67536156,42249.0,42248.0,0.058]
[1641888184419,0.67536156,42249.0,42246.0,0.00085362]
[1641888185123,0.67536156,42249.0,42246.0,0.07385362]
[1641888185320,0.67536156,42249.0,42246.0,0.073]
[1641888185520,0.67536156,42249.0,42246.0,0.123]
[1641888185721,0.33918151,42249.0,42246.0,0.123]
[1641888186366,0.33918151,42249.0,42245.0,0.00085363]
[1641888186566,0.33918151,42249.0,42236.0,0.118329]
[1641888186772,0.33918151,42249.0,42245.0,0.00085363]
[1641888186773,0.26669406,42246.0,42245.0,0.00085363]
[1641888187066,0.68002991,42246.0,42245.0,0.00085363]
[1641888187266,0.32564957,42246.0,42245.0,0.00085363]
[1641888187467,0.017,42249.0,42245.0,0.00085363]
[1641888187669,0.017,42249.0,42241.0,0.118315]
[1641888187866,0.017,42249.0,42245.0,0.24]
[1641888188065,0.017,42249.0,42246.0,0.26771259]
[1641888188266,0.00128934,42251.0,42246.0,0.26771259]
[1641888188466,0.28793708,42252.0,42246.0,0.31771259]
[1641888188666,0.28793708,42252.0,42246.0,0.41771259]
[1641888188868,0.9986,42255.0,42248.0,0.059155]
[1641888189072,0.016,42252.0,42248.0,0.059155]
[1641888189273,0.016,42252.0,42249.0,0.371351]
[1641888189470,0.016,42252.0,42249.0,0.421351]
[1641888190114,0.016,42252.0,42250.0,0.40085321]
[1641888190318,0.30711569,42254.0,42251.0,0.31418366]
[1641888190516,0.30711569,42254.0,42251.0,0.36418366]
[1641888190714,0.30711569,42254.0,42251.0,0.46418366]
[1641888190915,0.30711569,42254.0,42251.0,0.05]
[1641888191117,0.31811569,42254.0,42251.0,0.109]
[1641888191318,0.31811569,42254.0,42251.0,0.059]
[1641888191516,0.31811569,42254.0,42251.0,0.009]
[1641888191919,0.011,42254.0,42251.0,0.009]
[1641888192318,0.00127561,42261.0,42252.0,0.371351]
[1641888192521,0.9563,42264.0,42252.0,0.15]
[1641888192921,0.60976209,42256.0,42252.0,0.15]
[1641888193119,0.60976209,42256.0,42252.0,0.154]
[1641888193322,0.60976209,42256.0,42253.0,0.059147]
[1641888193663,0.60976209,42256.0,42252.0,0.054]
[1641888193863,0.60976209,42256.0,42254.0,0.0004482]
[1641888194465,0.2609143,42256.0,42254.0,0.0004482]
[1641888195065,0.00129882,42259.0,42254.0,0.0174482]
[1641888195264,0.00122764,42267.0,42254.0,0.38584064]
[1641888195567,0.00122764,42267.0,42254.0,0.1174482]
[1641888195762,0.00122764,42267.0,42254.0,0.48796252]
[1641888195963,0.25094769,42265.0,42254.0,0.35886734]
[1641888196163,1.67789401,42264.0,42254.0,0.35886734]
[1641888196363,1.67789401,42264.0,42257.0,0.00085351]
[1641888196563,1.38951681,42264.0,42258.0,0.05914]
[1641888196763,0.43321681,42264.0,42258.0,0.05914]
[1641888197165,0.047,42264.0,42258.0,0.06514]
[1641888197436,0.047,42264.0,42259.0,0.00085349]
[1641888197616,0.047,42264.0,42261.0,0.118252]
[1641888198015,0.047,42264.0,42261.0,0.168252]
[1641888198219,0.047,42264.0,42262.0,0.44692195]
[1641888198416,0.25835559,42267.0,42262.0,0.44692195]
[1641888198616,0.25835559,42267.0,42262.0,0.54692195]
[1641888198818,0.25835559,42267.0,42264.0,0.059125]
[1641888199618,0.25835559,42267.0,42262.0,0.008]
[1641888201021,0.25835559,42267.0,42263.0,0.05]
[1641888201263,0.38387411,42272.0,42265.0,0.059128]
[1641888201465,0.001,42272.0,42266.0,0.37233153]
[1641888201665,0.001,42272.0,42271.0,0.00127678]
[1641888201967,0.001,42272.0,42271.0,0.66930302]
[1641888202165,0.001,42272.0,42271.0,0.81930302]
[1641888202365,0.001,42272.0,42271.0,0.52262778]
[1641888202565,0.001,42272.0,42271.0,0.521351]
[1641888203165,0.001,42272.0,42271.0,0.539351]
[1641888203568,0.001,42272.0,42271.0,0.489351]
[1641888203766,0.001,42272.0,42271.0,0.168]
[1641888203966,0.001,42272.0,42271.0,0.01844106]
[1641888204169,0.372351,42272.0,42271.0,0.01844106]
[1641888204369,0.74462367,42272.0,42271.0,0.00044106]
[1641888204773,0.37327267,42272.0,42271.0,0.00044106]
[1641888205214,0.38127267,42272.0,42271.0,0.00844106]
[1641888206117,0.01020039,42272.0,42271.0,0.00844106]
[1641888206316,0.001,42272.0,42271.0,0.00044106]
[1641888207118,0.008,42272.0,42271.0,0.00444106]
[1641888207518,0.008,42272.0,42271.0,0.24444106]
[1641888208318,0.001,42272.0,42271.0,0.24044106]
[1641888209164,0.017,42272.0,42271.0,0.24744106]
[1641888210364,0.001,42272.0,42271.0,0.24044106]
[1641888211068,0.016,42272.0,42271.0,0.24944106]
[1641888212427,0.001,42272.0,42271.0,0.24044106]
[1641888213219,0.007,42272.0,42271.0,0.26744106]
[1641888213920,0.77614659,42272.0,42271.0,0.26744106]
[1641888214323,0.82373241,42272.0,42271.0,0.26744106]
[1641888214521,0.77014659,42272.0,42271.0,0.24044106]
[1641888215221,0.78214659,42272.0,42271.0,0.24044106]
[1641888216367,0.77014659,42272.0,42271.0,0.24044106]
[1641888217166,0.78514659,42272.0,42271.0,0.24044106]
[1641888217966,0.41379559,42272.0,42271.0,0.24044106]
[1641888218367,0.39879559,42272.0,42271.0,0.24044106]
[1641888218767,0.001,42272.0,42271.0,0.24044106]
[1641888219168,0.014,42272.0,42271.0,0.24544106]
[1641888220430,0.001,42272.0,42271.0,0.24044106]
[1641888221227,0.014,42272.0,42271.0,0.24744106]
[1641888222429,0.001,42272.0,42271.0,0.24044106]
[1641888223231,0.014,42272.0,42271.0,0.24844106]
[1641888224563,0.04285301,42272.0,42271.0,0.24044106]
[1641888225263,0.06385301,42272.0,42271.0,0.24144106]
[1641888226463,0.04285301,42272.0,42271.0,0.24044106]
[1641888227064,0.001,42272.0,42271.0,0.24044106]
[1641888227264,0.015,42272.0,42271.0,0.24844106]
[1641888227723,0.00927776,42273.0,42271.0,0.24844106]
[1641888227923,0.2744646,42274.0,42271.0,0.24844106]
[1641888228120,0.31899119,42274.0,42271.0,0.24844106]
[1641888228521,0.31821262,42274.0,42271.0,0.24844106]
[1641888229222,0.28968603,42274.0,42271.0,0.25344106]
[1641888229621,0.03846131,42273.0,42271.0,0.25344106]
[1641888229822,0.016,42274.0,42271.0,0.25344106]
[1641888230024,0.016,42274.0,42271.0,0.31333106]
[1641888230422,0.00077767,42275.0,42271.0,0.30033106]
[1641888230924,0.31257124,42274.0,42271.0,0.30033106]
[1641888231170,0.03624368,42273.0,42271.0,0.24844106]
[1641888231570,1.81671065,42272.0,42271.0,0.24844106]